[Event "*** Titled Tuesday Blitz"]
[Site "Chess.com"]
[Date "2020.05.05"]
[Round "9"]
[White "queen_iryna"]
[Black "gemarin"]
[Result "1-0"]
[WhiteElo "2294"]
[BlackElo "1979"]
[TimeControl "180+1"]
[EndTime "11:48:36 PDT"]
[Termination "queen_iryna won on time"]

1. d4 {[%clk 0:03:00.9]} 1... d5 {[%clk 0:02:51.2]} 2. Nc3 {[%clk 0:02:59.5]}
2... Bf5 {[%clk 0:02:44.6]} 3. Bg5 {[%clk 0:02:54.5]} 3... c6 {[%clk 0:02:42.5]}
4. e3 {[%clk 0:02:54.1]} 4... Qb6 {[%clk 0:02:37.5]} 5. Rb1 {[%clk 0:02:51.1]}
5... e6 {[%clk 0:02:31]} 6. Bd3 {[%clk 0:02:49.9]} 6... Bxd3 {[%clk 0:02:20.3]}
7. Qxd3 {[%clk 0:02:50.8]} 7... Nd7 {[%clk 0:02:19.4]} 8. Nf3 {[%clk 0:02:45.6]}
8... Ngf6 {[%clk 0:02:18.8]} 9. O-O {[%clk 0:02:44.3]} 9... Bd6 {[%clk
0:02:16.9]} 10. e4 {[%clk 0:02:42.2]} 10... dxe4 {[%clk 0:02:11.7]} 11. Nxe4
{[%clk 0:02:43.1]} 11... Nxe4 {[%clk 0:02:11.2]} 12. Qxe4 {[%clk 0:02:43.9]}
12... Qa5 {[%clk 0:02:05.3]} 13. Bh4 {[%clk 0:02:35.3]} 13... Qxa2 {[%clk
0:01:53.3]} 14. b3 {[%clk 0:02:26.9]} 14... Qa5 {[%clk 0:01:50.2]} 15. c4 {[%clk
0:02:15.2]} 15... Qh5 {[%clk 0:01:36.2]} 16. Bg3 {[%clk 0:02:05.6]} 16... Bxg3
{[%clk 0:01:34.6]} 17. fxg3 {[%clk 0:01:58.7]} 17... O-O {[%clk 0:01:33.7]} 18.
g4 {[%clk 0:01:47.3]} 18... Qg6 {[%clk 0:01:32.1]} 19. Qf4 {[%clk 0:01:45]}
19... Rfd8 {[%clk 0:01:19.2]} 20. g5 {[%clk 0:01:33.6]} 20... Qf5 {[%clk
0:00:53.2]} 21. Qe3 {[%clk 0:01:21.3]} 21... Qg4 {[%clk 0:00:46.2]} 22. c5
{[%clk 0:00:47.5]} 22... Nf8 {[%clk 0:00:40]} 23. Rbd1 {[%clk 0:00:35.2]} 23...
Ng6 {[%clk 0:00:38.1]} 24. Ne5 {[%clk 0:00:25.5]} 24... Nxe5 {[%clk 0:00:31.9]}
25. Qxe5 {[%clk 0:00:26.4]} 25... Rd7 {[%clk 0:00:27.3]} 26. Rd3 {[%clk
0:00:24.5]} 26... Rad8 {[%clk 0:00:24.7]} 27. Rf4 {[%clk 0:00:18.6]} 27... Qh5
{[%clk 0:00:23.7]} 28. Rdf3 {[%clk 0:00:18.3]} 28... Qg6 {[%clk 0:00:20.1]} 29.
h4 {[%clk 0:00:17.3]} 29... h6 {[%clk 0:00:18.1]} 30. gxh6 {[%clk 0:00:16.4]}
30... Qxh6 {[%clk 0:00:17.9]} 31. Kh2 {[%clk 0:00:15.7]} 31... Rd5 {[%clk
0:00:16]} 32. Qe4 {[%clk 0:00:15.1]} 32... f5 {[%clk 0:00:09.6]} 33. Qe3 {[%clk
0:00:13.6]} 33... Qf6 {[%clk 0:00:08.5]} 34. Kh3 {[%clk 0:00:13.1]} 34... Rxd4
{[%clk 0:00:08.3]} 35. Rxd4 {[%clk 0:00:12.5]} 35... Rxd4 {[%clk 0:00:08]} 36.
g3 {[%clk 0:00:11.9]} 36... Re4 {[%clk 0:00:06]} 37. Qd3 {[%clk 0:00:11.5]}
37... Qe7 {[%clk 0:00:06]} 38. b4 {[%clk 0:00:10.3]} 38... Re5 {[%clk
0:00:04.6]} 39. Qd4 {[%clk 0:00:10.2]} 39... Rd5 {[%clk 0:00:04.6]} 40. Qf4
{[%clk 0:00:10]} 40... Qd7 {[%clk 0:00:04.1]} 41. Qb8+ {[%clk 0:00:09.7]} 41...
Kh7 {[%clk 0:00:04]} 42. Qxa7 {[%clk 0:00:09.8]} 42... Rd1 {[%clk 0:00:03.7]}
43. Rf2 {[%clk 0:00:06.6]} 43... Qd5 {[%clk 0:00:03.5]} 44. Rh2 {[%clk
0:00:03.5]} 44... Qe4 {[%clk 0:00:03.1]} 45. Qa2 {[%clk 0:00:02.7]} 45... Qg4+
{[%clk 0:00:02.2]} 46. Kg2 {[%clk 0:00:02.5]} 46... Qe4+ {[%clk 0:00:02.6]} 47.
Kh3 {[%clk 0:00:02.7]} 47... Rc1 {[%clk 0:00:02.5]} 48. Qe2 {[%clk 0:00:01.6]}
1-0

[Event "*** Titled Tuesday Blitz"]
[Site "Chess.com"]
[Date "2020.05.05"]
[Round "9"]
[White "GMJustin"]
[Black "kreonx"]
[Result "0-1"]
[WhiteElo "2349"]
[BlackElo "2237"]
[TimeControl "180+1"]
[EndTime "11:48:38 PDT"]
[Termination "kreonx won on time"]

1. d4 {[%clk 0:02:51.7]} 1... f5 {[%clk 0:02:59.4]} 2. Nd2 {[%clk 0:02:47.2]}
2... Nf6 {[%clk 0:02:58.1]} 3. Ngf3 {[%clk 0:02:44]} 3... g6 {[%clk 0:02:55.6]}
4. b3 {[%clk 0:02:42.8]} 4... Bg7 {[%clk 0:02:55.8]} 5. Bb2 {[%clk 0:02:42]}
5... Ne4 {[%clk 0:02:54.9]} 6. h4 {[%clk 0:01:59.5]} 6... c5 {[%clk 0:02:22.9]}
7. h5 {[%clk 0:01:51.4]} 7... Nc6 {[%clk 0:02:06.2]} 8. hxg6 {[%clk 0:01:44.7]}
8... hxg6 {[%clk 0:02:06]} 9. Rxh8+ {[%clk 0:01:43.6]} 9... Bxh8 {[%clk
0:02:06.9]} 10. e3 {[%clk 0:01:40.9]} 10... Qa5 {[%clk 0:01:48.6]} 11. Qc1
{[%clk 0:01:25.8]} 11... Nxd2 {[%clk 0:01:48.4]} 12. Qxd2 {[%clk 0:01:24.1]}
12... Qxd2+ {[%clk 0:01:44.2]} 13. Kxd2 {[%clk 0:01:24.3]} 13... cxd4 {[%clk
0:01:44.4]} 14. exd4 {[%clk 0:01:22]} 14... b6 {[%clk 0:01:28.3]} 15. c3 {[%clk
0:01:15.4]} 15... Bb7 {[%clk 0:01:25]} 16. Bc4 {[%clk 0:01:13.3]} 16... Na5
{[%clk 0:01:07.4]} 17. Bd3 {[%clk 0:01:12]} 17... Bxf3 {[%clk 0:00:57.3]} 18.
gxf3 {[%clk 0:01:11]} 18... Nc6 {[%clk 0:00:57.7]} 19. Rh1 {[%clk 0:01:02.5]}
19... Bg7 {[%clk 0:00:48.7]} 20. Ba3 {[%clk 0:00:45.7]} 20... Kf7 {[%clk
0:00:43.5]} 21. Bc4+ {[%clk 0:00:35.6]} 21... e6 {[%clk 0:00:43.1]} 22. d5
{[%clk 0:00:35.3]} 22... Ne5 {[%clk 0:00:41.6]} 23. dxe6+ {[%clk 0:00:33.8]}
23... dxe6 {[%clk 0:00:41.2]} 24. Be2 {[%clk 0:00:34]} 24... Rd8+ {[%clk
0:00:31.5]} 25. Kc2 {[%clk 0:00:33.9]} 25... Rc8 {[%clk 0:00:26.4]} 26. Bb2
{[%clk 0:00:25.3]} 26... f4 {[%clk 0:00:21.2]} 27. a4 {[%clk 0:00:23.2]} 27...
Nc6 {[%clk 0:00:19.6]} 28. Bc4 {[%clk 0:00:20.6]} 28... Ne5 {[%clk 0:00:17]} 29.
Ba6 {[%clk 0:00:20.2]} 29... Rc7 {[%clk 0:00:16.4]} 30. Rd1 {[%clk 0:00:18.8]}
30... Nc6 {[%clk 0:00:14.3]} 31. Bc4 {[%clk 0:00:17]} 31... Ne5 {[%clk
0:00:14.3]} 32. Be2 {[%clk 0:00:17]} 32... Nc6 {[%clk 0:00:14.2]} 33. Bc4 {[%clk
0:00:12.7]} 33... Ne5 {[%clk 0:00:14.1]} 34. Be2 {[%clk 0:00:12.7]} 34... g5
{[%clk 0:00:14.7]} 35. Kb1 {[%clk 0:00:09.6]} 35... Ng6 {[%clk 0:00:11.9]} 36.
Rd8 {[%clk 0:00:08.3]} 36... Bxc3 {[%clk 0:00:10.8]} 37. Bxc3 {[%clk 0:00:07.7]}
37... Rxc3 {[%clk 0:00:11.7]} 38. Rd7+ {[%clk 0:00:07.7]} 38... Kf6 {[%clk
0:00:12.2]} 39. Kb2 {[%clk 0:00:07.6]} 39... Rc6 {[%clk 0:00:10.1]} 40. Rxa7
{[%clk 0:00:07.5]} 40... Rd6 {[%clk 0:00:10.1]} 41. Bf1 {[%clk 0:00:06.1]} 41...
Rd2+ {[%clk 0:00:08.5]} 42. Kc3 {[%clk 0:00:06.2]} 42... Rxf2 {[%clk 0:00:09.4]}
43. Bc4 {[%clk 0:00:05.8]} 43... Rxf3+ {[%clk 0:00:09.8]} 44. Kb4 {[%clk
0:00:05.6]} 44... Ne5 {[%clk 0:00:09.2]} 45. Rb7 {[%clk 0:00:05.5]} 45... Nxc4
{[%clk 0:00:08.6]} 46. Kxc4 {[%clk 0:00:05]} 46... g4 {[%clk 0:00:09]} 47. Rxb6
{[%clk 0:00:04.5]} 47... g3 {[%clk 0:00:09.5]} 48. a5 {[%clk 0:00:02.2]} 48...
g2 {[%clk 0:00:09.8]} 49. Rb8 {[%clk 0:00:01.6]} 49... g1=Q {[%clk 0:00:09.8]}
50. a6 {[%clk 0:00:01.4]} 50... Qf1+ {[%clk 0:00:09.7]} 0-1

[Event "*** Titled Tuesday Blitz"]
[Site "Chess.com"]
[Date "2020.05.05"]
[Round "9"]
[White "RATNAKARAN"]
[Black "albano87"]
[Result "1/2-1/2"]
[WhiteElo "2556"]
[BlackElo "2409"]
[TimeControl "180+1"]
[EndTime "11:48:39 PDT"]
[Termination "Game drawn - insufficient material"]

1. e4 {[%clk 0:03:00.9]} 1... g6 {[%clk 0:02:58.8]} 2. d4 {[%clk 0:03:00.8]}
2... Bg7 {[%clk 0:02:59.3]} 3. Bc4 {[%clk 0:03:00.8]} 3... d6 {[%clk 0:02:55]}
4. Bb3 {[%clk 0:03:00.6]} 4... Nf6 {[%clk 0:02:50.1]} 5. Qe2 {[%clk 0:03:00.3]}
5... c6 {[%clk 0:02:46.2]} 6. Bg5 {[%clk 0:02:59.4]} 6... Qa5+ {[%clk
0:02:39.3]} 7. Bd2 {[%clk 0:02:59.1]} 7... Qc7 {[%clk 0:02:39]} 8. f4 {[%clk
0:02:57.6]} 8... e5 {[%clk 0:02:18.4]} 9. fxe5 {[%clk 0:02:47.6]} 9... dxe5
{[%clk 0:02:17.6]} 10. d5 {[%clk 0:02:47.7]} 10... O-O {[%clk 0:02:00.9]} 11. c4
{[%clk 0:02:47]} 11... a5 {[%clk 0:01:55.4]} 12. Nc3 {[%clk 0:02:46.2]} 12...
Nbd7 {[%clk 0:01:51]} 13. Nf3 {[%clk 0:02:45.2]} 13... Re8 {[%clk 0:01:41]} 14.
O-O {[%clk 0:02:44.4]} 14... b6 {[%clk 0:01:39.4]} 15. h3 {[%clk 0:02:40.3]}
15... Ba6 {[%clk 0:01:34.2]} 16. Rf2 {[%clk 0:02:40.2]} 16... cxd5 {[%clk
0:01:32.9]} 17. exd5 {[%clk 0:02:38.2]} 17... Nc5 {[%clk 0:01:30.1]} 18. Bc2
{[%clk 0:02:37.2]} 18... e4 {[%clk 0:01:23.9]} 19. Nd4 {[%clk 0:02:36.2]} 19...
Nd3 {[%clk 0:00:53.1]} 20. Ndb5 {[%clk 0:02:15.8]} 20... Bxb5 {[%clk 0:00:48]}
21. Nxb5 {[%clk 0:02:16.7]} 21... Qxc4 {[%clk 0:00:45.3]} 22. Nd6 {[%clk
0:02:14.5]} 22... Qxc2 {[%clk 0:00:39.5]} 23. Nxe8 {[%clk 0:02:14.7]} 23... Rxe8
{[%clk 0:00:36.6]} 24. Bc3 {[%clk 0:02:13.8]} 24... Qxe2 {[%clk 0:00:33.3]} 25.
Rxe2 {[%clk 0:02:14.7]} 25... Nxd5 {[%clk 0:00:33.1]} 26. Bxg7 {[%clk
0:02:14.8]} 26... Kxg7 {[%clk 0:00:33.4]} 27. Rd1 {[%clk 0:02:12.7]} 27... Nf6
{[%clk 0:00:30.8]} 28. a3 {[%clk 0:02:10.4]} 28... Rc8 {[%clk 0:00:27.5]} 29. g4
{[%clk 0:02:10.1]} 29... h6 {[%clk 0:00:25.7]} 30. Kh2 {[%clk 0:02:09.5]} 30...
Rc1 {[%clk 0:00:24.4]} 31. Rxc1 {[%clk 0:02:08]} 31... Nxc1 {[%clk 0:00:25.3]}
32. Rc2 {[%clk 0:02:08.2]} 32... Nd3 {[%clk 0:00:23.2]} 33. Kg3 {[%clk 0:02:08]}
33... b5 {[%clk 0:00:22.5]} 34. b3 {[%clk 0:02:07]} 34... b4 {[%clk 0:00:21.7]}
35. axb4 {[%clk 0:02:06.5]} 35... axb4 {[%clk 0:00:22.2]} 36. Rc7 {[%clk
0:02:04.2]} 36... e3 {[%clk 0:00:19.7]} 37. Kf3 {[%clk 0:02:00.1]} 37... Nd5
{[%clk 0:00:19.4]} 38. Rb7 {[%clk 0:01:56]} 38... N3f4 {[%clk 0:00:18.1]} 39.
Rb8 {[%clk 0:01:52.7]} 39... e2 {[%clk 0:00:17.9]} 40. Re8 {[%clk 0:01:52.7]}
40... Kf6 {[%clk 0:00:15]} 41. h4 {[%clk 0:01:52.8]} 41... g5 {[%clk 0:00:15.1]}
42. h5 {[%clk 0:01:51.1]} 42... Ne6 {[%clk 0:00:14.6]} 43. Kxe2 {[%clk
0:01:50.2]} 43... Ndf4+ {[%clk 0:00:13.8]} 44. Kf3 {[%clk 0:01:49.2]} 44... Nc5
{[%clk 0:00:14]} 45. Rb8 {[%clk 0:01:46.5]} 45... Nxb3 {[%clk 0:00:14]} 46. Rxb4
{[%clk 0:01:46.1]} 46... Nd2+ {[%clk 0:00:14.2]} 47. Kf2 {[%clk 0:01:41.6]}
47... Ke5 {[%clk 0:00:13.1]} 48. Rb6 {[%clk 0:01:34.1]} 48... Ne4+ {[%clk
0:00:12.3]} 49. Kf3 {[%clk 0:01:31.8]} 49... Nd6 {[%clk 0:00:11.5]} 50. Rb8
{[%clk 0:01:30.2]} 50... f6 {[%clk 0:00:07.5]} 51. Rh8 {[%clk 0:01:29.9]} 51...
Nf7 {[%clk 0:00:07.6]} 52. Re8+ {[%clk 0:01:30]} 52... Kd6 {[%clk 0:00:07.4]}
53. Ke4 {[%clk 0:01:29.5]} 53... Ne6 {[%clk 0:00:04.4]} 54. Ra8 {[%clk 0:01:27]}
54... Ng7 {[%clk 0:00:03.1]} 55. Ra7 {[%clk 0:01:26.1]} 55... Ke6 {[%clk
0:00:03.1]} 56. Kf3 {[%clk 0:01:26.1]} 56... Ne8 {[%clk 0:00:01.7]} 57. Kg3
{[%clk 0:01:24.4]} 57... Ned6 {[%clk 0:00:02.6]} 58. Ra6 {[%clk 0:01:23.5]}
58... f5 {[%clk 0:00:03.5]} 59. gxf5+ {[%clk 0:01:23.3]} 59... Kxf5 {[%clk
0:00:04.4]} 60. Ra5+ {[%clk 0:01:23.5]} 60... Ne5 {[%clk 0:00:03]} 61. Ra6
{[%clk 0:01:22.9]} 61... Ne4+ {[%clk 0:00:03.5]} 62. Kg2 {[%clk 0:01:21.5]}
62... Nf6 {[%clk 0:00:04.1]} 63. Kh3 {[%clk 0:01:20.9]} 63... g4+ {[%clk
0:00:03.8]} 64. Kh4 {[%clk 0:01:20.6]} 64... Nf3+ {[%clk 0:00:04.1]} 65. Kg3
{[%clk 0:01:20.7]} 65... Nxh5+ {[%clk 0:00:05]} 66. Kf2 {[%clk 0:01:20.8]} 66...
Nf6 {[%clk 0:00:05.9]} 67. Ra5+ {[%clk 0:01:20.8]} 67... Ne5 {[%clk 0:00:06.5]}
68. Kg3 {[%clk 0:01:20]} 68... h5 {[%clk 0:00:07.4]} 69. Kh4 {[%clk 0:01:19.1]}
69... Kf4 {[%clk 0:00:07.8]} 70. Ra4+ {[%clk 0:01:15.5]} 70... Ne4 {[%clk
0:00:07.1]} 71. Kxh5 {[%clk 0:01:14.9]} 71... g3 {[%clk 0:00:07.4]} 72. Ra1
{[%clk 0:01:11.8]} 72... Kf3 {[%clk 0:00:07.1]} 73. Rg1 {[%clk 0:01:11.1]} 73...
g2 {[%clk 0:00:07.3]} 74. Rxg2 {[%clk 0:01:11.3]} 74... Kxg2 {[%clk 0:00:07.7]}
1/2-1/2

[Event "*** Titled Tuesday Blitz"]
[Site "Chess.com"]
[Date "2020.05.05"]
[Round "9"]
[White "elsemenova"]
[Black "IMRosen"]
[Result "0-1"]
[WhiteElo "2399"]
[BlackElo "2557"]
[TimeControl "180+1"]
[EndTime "11:48:39 PDT"]
[Termination "IMRosen won by resignation"]

1. e4 {[%clk 0:03:00.9]} 1... e5 {[%clk 0:02:52.7]} 2. Nf3 {[%clk 0:03:00]} 2...
Nf6 {[%clk 0:02:53.1]} 3. Nc3 {[%clk 0:02:59.7]} 3... Nc6 {[%clk 0:02:53.3]} 4.
Bb5 {[%clk 0:02:58.5]} 4... Bb4 {[%clk 0:02:52.7]} 5. O-O {[%clk 0:02:58.7]}
5... O-O {[%clk 0:02:52.5]} 6. d3 {[%clk 0:02:59.2]} 6... d6 {[%clk 0:02:52.5]}
7. Ne2 {[%clk 0:02:57.3]} 7... Ne7 {[%clk 0:02:52]} 8. c3 {[%clk 0:02:57.7]}
8... Ba5 {[%clk 0:02:47.9]} 9. Ng3 {[%clk 0:02:56.9]} 9... Ng6 {[%clk
0:02:47.2]} 10. d4 {[%clk 0:02:47.5]} 10... Bb6 {[%clk 0:02:35.1]} 11. h3 {[%clk
0:02:36.2]} 11... h6 {[%clk 0:02:11.3]} 12. Re1 {[%clk 0:02:35.7]} 12... Be6
{[%clk 0:01:59.7]} 13. Nf5 {[%clk 0:02:30]} 13... Kh7 {[%clk 0:01:45]} 14. Ba4
{[%clk 0:02:10.8]} 14... c6 {[%clk 0:01:42.6]} 15. Bb3 {[%clk 0:01:53.4]} 15...
Re8 {[%clk 0:01:37.9]} 16. a4 {[%clk 0:01:48.4]} 16... Bc7 {[%clk 0:01:31]} 17.
Bxe6 {[%clk 0:01:43.1]} 17... fxe6 {[%clk 0:01:08.9]} 18. Ng3 {[%clk 0:01:39.2]}
18... Qe7 {[%clk 0:01:08.7]} 19. Be3 {[%clk 0:01:35.3]} 19... Rf8 {[%clk
0:01:08.4]} 20. b4 {[%clk 0:01:29.5]} 20... Rf7 {[%clk 0:01:07.3]} 21. Qb3
{[%clk 0:01:23.7]} 21... Nf4 {[%clk 0:00:58.9]} 22. Rad1 {[%clk 0:01:14.4]}
22... Raf8 {[%clk 0:00:58]} 23. dxe5 {[%clk 0:01:14.3]} 23... dxe5 {[%clk
0:00:58.1]} 24. Bc5 {[%clk 0:01:14.3]} 24... Qe8 {[%clk 0:00:49.7]} 25. Bxf8
{[%clk 0:01:13.2]} 25... Qxf8 {[%clk 0:00:50.6]} 26. c4 {[%clk 0:01:10.1]} 26...
g5 {[%clk 0:00:49.3]} 27. c5 {[%clk 0:01:08.5]} 27... g4 {[%clk 0:00:49.5]} 28.
hxg4 {[%clk 0:01:08.7]} 28... Nxg4 {[%clk 0:00:50.4]} 29. Rd2 {[%clk 0:01:02.9]}
29... Qg7 {[%clk 0:00:49.3]} 30. Red1 {[%clk 0:01:00.1]} 30... h5 {[%clk
0:00:38.7]} 31. Kf1 {[%clk 0:00:48.6]} 31... Nh6 {[%clk 0:00:15.9]} 32. Nh4
{[%clk 0:00:35.4]} 32... Qf6 {[%clk 0:00:12.4]} 33. Rd7 {[%clk 0:00:34.6]} 33...
Qxh4 {[%clk 0:00:10.7]} 34. Rxf7+ {[%clk 0:00:34.4]} 34... Nxf7 {[%clk
0:00:11.6]} 35. Rd7 {[%clk 0:00:34.4]} 35... Qh2 {[%clk 0:00:07.6]} 36. Qf3
{[%clk 0:00:32.5]} 36... h4 {[%clk 0:00:02.8]} 37. Rxf7+ {[%clk 0:00:26.3]}
37... Kg6 {[%clk 0:00:02.7]} 38. Rxc7 {[%clk 0:00:21.9]} 38... hxg3 {[%clk
0:00:03.1]} 39. Qg4+ {[%clk 0:00:22.4]} 39... Kh6 {[%clk 0:00:02.7]} 40. Qg7+
{[%clk 0:00:21.7]} 40... Kh5 {[%clk 0:00:02.9]} 41. Qh7+ {[%clk 0:00:20.2]}
41... Kg5 {[%clk 0:00:03]} 42. Qxh2 {[%clk 0:00:20.4]} 42... gxh2 {[%clk
0:00:03.2]} 43. Rh7 {[%clk 0:00:21]} 43... Nh5 {[%clk 0:00:03]} 44. f4+ {[%clk
0:00:21.4]} 44... exf4 {[%clk 0:00:03.1]} 45. Rxh5+ {[%clk 0:00:20.2]} 45...
Kxh5 {[%clk 0:00:03.3]} 46. g4+ {[%clk 0:00:21.1]} 46... fxg3 {[%clk 0:00:03.7]}
47. Kg2 {[%clk 0:00:21.3]} 47... Kg4 {[%clk 0:00:04.4]} 48. b5 {[%clk
0:00:21.3]} 48... Kf4 {[%clk 0:00:03.9]} 49. a5 {[%clk 0:00:21.7]} 49... a6
{[%clk 0:00:04.5]} 50. bxc6 {[%clk 0:00:21.5]} 50... bxc6 {[%clk 0:00:05.4]} 51.
e5 {[%clk 0:00:22.2]} 51... Kxe5 {[%clk 0:00:05.8]} 52. Kxg3 {[%clk 0:00:22.7]}
52... h1=Q {[%clk 0:00:05.8]} 0-1

[Event "*** Titled Tuesday Blitz"]
[Site "Chess.com"]
[Date "2020.05.05"]
[Round "9"]
[White "mortngabriel"]
[Black "ChronicUnhappiness"]
[Result "1-0"]
[WhiteElo "2452"]
[BlackElo "2312"]
[TimeControl "180+1"]
[EndTime "11:48:39 PDT"]
[Termination "mortngabriel won by resignation"]

1. d4 {[%clk 0:03:00.9]} 1... d5 {[%clk 0:02:54.7]} 2. c4 {[%clk 0:03:00.9]}
2... e6 {[%clk 0:02:54.4]} 3. Nf3 {[%clk 0:03:00.6]} 3... Nf6 {[%clk 0:02:53.9]}
4. g3 {[%clk 0:03:01.1]} 4... c5 {[%clk 0:02:49]} 5. cxd5 {[%clk 0:02:58.1]}
5... exd5 {[%clk 0:02:48.3]} 6. Bg2 {[%clk 0:02:58.1]} 6... Nc6 {[%clk
0:02:48.4]} 7. O-O {[%clk 0:02:57.7]} 7... Be7 {[%clk 0:02:47.8]} 8. dxc5 {[%clk
0:02:57.3]} 8... Bxc5 {[%clk 0:02:47.5]} 9. a3 {[%clk 0:02:58.2]} 9... O-O
{[%clk 0:02:41.7]} 10. b4 {[%clk 0:02:58.1]} 10... Bb6 {[%clk 0:02:41.1]} 11.
Bb2 {[%clk 0:02:58.5]} 11... Re8 {[%clk 0:02:33.4]} 12. Nbd2 {[%clk 0:02:57.1]}
12... Bg4 {[%clk 0:02:29.6]} 13. Nb3 {[%clk 0:02:56.8]} 13... a6 {[%clk
0:02:24.2]} 14. Rc1 {[%clk 0:02:55.1]} 14... Qd7 {[%clk 0:02:23.3]} 15. Nc5
{[%clk 0:02:53.6]} 15... Bxc5 {[%clk 0:02:05.3]} 16. Rxc5 {[%clk 0:02:53]} 16...
Re6 {[%clk 0:02:00.7]} 17. Bxf6 {[%clk 0:02:49.9]} 17... Rxf6 {[%clk 0:01:59.4]}
18. Rxd5 {[%clk 0:02:50.1]} 18... Qe7 {[%clk 0:01:57.2]} 19. Re1 {[%clk
0:02:40]} 19... Re6 {[%clk 0:01:56.4]} 20. h3 {[%clk 0:02:27.4]} 20... Bxf3
{[%clk 0:01:47.8]} 21. Bxf3 {[%clk 0:02:28.3]} 21... g6 {[%clk 0:01:35.2]} 22.
Rd7 {[%clk 0:02:27.4]} 22... Qf6 {[%clk 0:01:32.2]} 23. Rxb7 {[%clk 0:02:25.8]}
23... Rd8 {[%clk 0:01:32.7]} 24. Rd7 {[%clk 0:02:22.7]} 24... Rxd7 {[%clk
0:01:25.9]} 25. Qxd7 {[%clk 0:02:22]} 25... Nd4 {[%clk 0:01:25.8]} 26. Bg4
{[%clk 0:02:07.9]} 26... Rd6 {[%clk 0:01:19.5]} 27. Qe8+ {[%clk 0:02:07.3]}
27... Kg7 {[%clk 0:01:19.1]} 28. e3 {[%clk 0:01:55.2]} 28... Nc2 {[%clk
0:01:16.2]} 29. Rc1 {[%clk 0:01:47.7]} 29... Rd8 {[%clk 0:01:15.5]} 30. Qe4
{[%clk 0:01:45.2]} 30... Nxa3 {[%clk 0:01:04.9]} 31. Rc6 {[%clk 0:01:22.8]}
31... Rd6 {[%clk 0:00:54.5]} 32. Rxd6 {[%clk 0:01:16.1]} 32... Qxd6 {[%clk
0:00:55.4]} 33. Be2 {[%clk 0:01:15.4]} 33... Nb5 {[%clk 0:00:29.6]} 34. Bxb5
{[%clk 0:00:59.8]} 34... axb5 {[%clk 0:00:30.5]} 35. Qd4+ {[%clk 0:01:00.6]}
35... Qxd4 {[%clk 0:00:29.9]} 36. exd4 {[%clk 0:01:01.5]} 36... Kf6 {[%clk
0:00:30.3]} 37. Kf1 {[%clk 0:00:55.3]} 37... Kf5 {[%clk 0:00:29.8]} 38. f3
{[%clk 0:00:55.1]} 38... h5 {[%clk 0:00:17.9]} 39. Ke2 {[%clk 0:00:51.9]} 39...
h4 {[%clk 0:00:17.8]} 40. g4+ {[%clk 0:00:50.8]} 40... Kf4 {[%clk 0:00:17.2]}
41. Kf2 {[%clk 0:00:32.7]} 41... g5 {[%clk 0:00:12.6]} 42. Ke2 {[%clk
0:00:31.9]} 42... f6 {[%clk 0:00:04.9]} 43. Kf2 {[%clk 0:00:18.5]} 43... f5
{[%clk 0:00:04.8]} 44. gxf5 {[%clk 0:00:19.4]} 44... Kxf5 {[%clk 0:00:04.2]} 45.
Ke3 {[%clk 0:00:19.8]} 45... Kf6 {[%clk 0:00:02.7]} 46. Ke4 {[%clk 0:00:19.3]}
46... Ke6 {[%clk 0:00:03.6]} 47. d5+ {[%clk 0:00:20.2]} 47... Kd6 {[%clk
0:00:02.7]} 48. Kd4 {[%clk 0:00:20.2]} 48... Kd7 {[%clk 0:00:02.4]} 49. Kc5
{[%clk 0:00:20.3]} 49... Ke7 {[%clk 0:00:03.3]} 50. Kxb5 {[%clk 0:00:20]} 50...
Kd6 {[%clk 0:00:04.2]} 51. Kc4 {[%clk 0:00:20]} 51... Ke5 {[%clk 0:00:05.1]} 52.
Kc5 {[%clk 0:00:19.6]} 52... Kf4 {[%clk 0:00:06]} 53. d6 {[%clk 0:00:19.7]}
53... g4 {[%clk 0:00:06.9]} 54. fxg4 {[%clk 0:00:17.2]} 54... Kg3 {[%clk
0:00:06.4]} 55. d7 {[%clk 0:00:17.3]} 55... Kxh3 {[%clk 0:00:07.3]} 56. d8=Q
{[%clk 0:00:17.6]} 1-0

[Event "*** Titled Tuesday Blitz"]
[Site "Chess.com"]
[Date "2020.05.05"]
[Round "9"]
[White "adriangschnitzer"]
[Black "SaySpade4VIP"]
[Result "1-0"]
[WhiteElo "2464"]
[BlackElo "2607"]
[TimeControl "180+1"]
[EndTime "11:48:41 PDT"]
[Termination "adriangschnitzer won on time"]

1. c4 {[%clk 0:03:00.9]} 1... e5 {[%clk 0:02:55.6]} 2. Nc3 {[%clk 0:03:00.8]}
2... Nc6 {[%clk 0:02:55.6]} 3. Nf3 {[%clk 0:03:00.2]} 3... Nf6 {[%clk 0:02:55]}
4. e3 {[%clk 0:02:59.6]} 4... Bb4 {[%clk 0:02:54.7]} 5. Qc2 {[%clk 0:02:59.3]}
5... O-O {[%clk 0:02:54.2]} 6. Nd5 {[%clk 0:02:58.7]} 6... Re8 {[%clk
0:02:51.7]} 7. Qf5 {[%clk 0:02:57.7]} 7... Be7 {[%clk 0:02:50.7]} 8. Nxe5 {[%clk
0:02:49.6]} 8... Nd4 {[%clk 0:02:50.2]} 9. Qd3 {[%clk 0:02:15.8]} 9... Nxd5
{[%clk 0:02:29.1]} 10. cxd5 {[%clk 0:02:11.7]} 10... Bf6 {[%clk 0:02:24.2]} 11.
Qxd4 {[%clk 0:01:47.1]} 11... Rxe5 {[%clk 0:02:17.8]} 12. Qc4 {[%clk 0:01:38]}
12... b5 {[%clk 0:02:06.1]} 13. Qxb5 {[%clk 0:01:08.3]} 13... c6 {[%clk
0:02:01]} 14. Qb3 {[%clk 0:01:08.2]} 14... Rxd5 {[%clk 0:01:59.3]} 15. Bc4
{[%clk 0:01:08.1]} 15... Rg5 {[%clk 0:01:47.3]} 16. Bxf7+ {[%clk 0:00:54.7]}
16... Kh8 {[%clk 0:01:43.7]} 17. g3 {[%clk 0:00:42.4]} 17... d5 {[%clk 0:01:36]}
18. h4 {[%clk 0:00:41.9]} 18... Re5 {[%clk 0:01:33.3]} 19. f4 {[%clk 0:00:31.3]}
19... Re7 {[%clk 0:01:29.8]} 20. Bh5 {[%clk 0:00:30.8]} 20... Bf5 {[%clk
0:01:23.2]} 21. Bf3 {[%clk 0:00:28.1]} 21... Rb8 {[%clk 0:01:14.4]} 22. Qa3
{[%clk 0:00:28.1]} 22... d4 {[%clk 0:01:06.5]} 23. Kf2 {[%clk 0:00:25.5]} 23...
a5 {[%clk 0:00:38.9]} 24. g4 {[%clk 0:00:25]} 24... Be4 {[%clk 0:00:30.1]} 25.
Bxe4 {[%clk 0:00:20.5]} 25... Rxe4 {[%clk 0:00:31]} 26. g5 {[%clk 0:00:20.3]}
26... Be7 {[%clk 0:00:27.2]} 27. Qd3 {[%clk 0:00:20.2]} 27... dxe3+ {[%clk
0:00:23.7]} 28. Ke2 {[%clk 0:00:14.8]} 28... Rd4 {[%clk 0:00:23.9]} 29. Qxe3
{[%clk 0:00:12.7]} 29... Qd5 {[%clk 0:00:24.2]} 30. Qf3 {[%clk 0:00:10.6]} 30...
Re4+ {[%clk 0:00:21.1]} 31. Kf2 {[%clk 0:00:10.9]} 31... Qd4+ {[%clk 0:00:15.5]}
32. Kg3 {[%clk 0:00:10.3]} 32... Rxf4 {[%clk 0:00:15.9]} 33. Qxf4 {[%clk
0:00:08]} 33... Bd6 {[%clk 0:00:16.3]} 34. Rf1 {[%clk 0:00:08.5]} 34... Rf8
{[%clk 0:00:10.9]} 35. d3 {[%clk 0:00:08]} 35... Qxd3+ {[%clk 0:00:07.1]} 36.
Kg4 {[%clk 0:00:07.7]} 36... Bxf4 {[%clk 0:00:06.9]} 37. Bxf4 {[%clk 0:00:05.2]}
37... Qe2+ {[%clk 0:00:07.2]} 38. Kg3 {[%clk 0:00:05]} 38... Qxb2 {[%clk
0:00:06.1]} 39. Rae1 {[%clk 0:00:03.6]} 39... Kg8 {[%clk 0:00:05.4]} 40. Rf3
{[%clk 0:00:02.7]} 40... Qxa2 {[%clk 0:00:05.1]} 41. Ref1 {[%clk 0:00:03.6]}
41... Qe6 {[%clk 0:00:04.5]} 42. h5 {[%clk 0:00:03.4]} 42... a4 {[%clk
0:00:04.4]} 43. h6 {[%clk 0:00:03.2]} 43... gxh6 {[%clk 0:00:04.9]} 44. gxh6
{[%clk 0:00:04.1]} 44... Rf6 {[%clk 0:00:04.4]} 45. Bg5 {[%clk 0:00:03.6]} 45...
Rxf3+ {[%clk 0:00:03.6]} 46. Rxf3 {[%clk 0:00:04.5]} 46... a3 {[%clk 0:00:02]}
47. Rf6 {[%clk 0:00:03.3]} 1-0